[Event "Chess Festival Groningen 2023 | A"]
[Site "Groningen, Netherlands"]
[Date "2023.12.24"]
[Round "4.20"]
[White "Van Foreest, Machteld"]
[Black "Van Der Leest, Bert"]
[Result "1-0"]
[TimeControl "90min/40moves + 30min + 30sec/move"]
[BlackFideId "1009460"]
[WhiteElo "2344"]
[BlackElo "2142"]

1. e4 {[%clk 01:30:54]} c5 {[%clk 01:30:54]} {[%emt 00:00:12]} 2. Nf3 {[%clk
01:31:19]} d6 {[%clk 01:31:19]} 3. d4 {[%clk 01:31:37]} {[%emt 00:00:48]} cxd4
{[%clk 01:31:43]} 4. Nxd4 {[%clk 01:32:04]} Nf6 {[%clk 01:32:02]} 5. Nc3 {[%clk
01:32:32]} g6 {[%clk 01:32:19]} {[%emt 00:00:05]} 6. Be3 {[%clk 01:32:58]} Bg7
{[%clk 01:32:34]} {[%emt 00:00:10]} 7. f3 {[%clk 01:33:22]} {[%emt 00:00:14]}
a6 {[%clk 01:32:51]} {[%emt 00:00:06]} 8. a4 {[%clk 01:30:46]} {[%emt
00:03:07]} b6 {[%clk 01:26:26]} {[%emt 00:06:55]} 9. Bc4 {[%clk 01:28:20]}
{[%emt 00:03:25]} Bb7 {[%clk 01:25:09]} {[%emt 00:01:22]} 10. O-O {[%clk
01:24:17]} {[%emt 00:04:56]} Nbd7 {[%clk 01:23:27]} {[%emt 00:01:43]} 11. Qe2
{[%clk 01:22:20]} {[%emt 00:03:08]} O-O {[%clk 01:14:06]} {[%emt 00:09:29]} 12.
Rad1 {[%clk 01:13:01]} {[%emt 00:09:30]} Qc7 {[%clk 01:10:34]} {[%emt
00:04:29]} 13. Kh1 {[%clk 01:05:51]} {[%emt 00:07:13]} Ne5 {[%clk 01:04:55]}
{[%emt 00:06:08]} 14. Ba2 {[%clk 01:04:13]} {[%emt 00:02:48]} Rac8 {[%clk
01:04:47]} {[%emt 00:00:14]} 15. Bc1 {[%clk 00:56:33]} {[%emt 00:07:56]} e6
{[%clk 00:40:32]} {[%emt 00:24:42]} 16. Qf2 {[%clk 00:39:55]} {[%emt 00:17:07]}
Rfd8 {[%clk 00:35:12]} {[%emt 00:05:50]} 17. Qh4 {[%clk 00:38:33]} {[%emt
00:01:54]} Nfd7 {[%clk 00:30:53]} {[%emt 00:05:32]} 18. Bxe6 {[%clk 00:33:20]}
{[%emt 00:04:59]} Bf6 {[%clk 00:30:32]} {[%emt 00:00:57]} 19. Bg5 {[%clk
00:33:17]} {[%emt 00:00:26]} Bxg5 {[%clk 00:30:44]} {[%emt 00:00:39]} 20. Qxg5
{[%clk 00:33:44]} fxe6 {[%clk 00:30:55]} {[%emt 00:00:04]} 21. Nxe6 {[%clk
00:34:08]} {[%emt 00:00:05]} Nf7 {[%clk 00:31:13]} {[%emt 00:00:10]} 22. Qe7
{[%clk 00:31:51]} {[%emt 00:03:22]} Qc4 {[%clk 00:25:46]} {[%emt 00:05:23]} 23.
Nxd8 {[%clk 00:30:26]} {[%emt 00:02:22]} Rxd8 {[%clk 00:26:02]} {[%emt
00:00:16]} 24. Rfe1 {[%clk 00:29:57]} {[%emt 00:00:29]} Qc8 {[%clk 00:24:35]}
{[%emt 00:01:57]} 25. Qh4 {[%clk 00:24:37]} {[%emt 00:05:58]} Re8 {[%clk
00:16:39]} {[%emt 00:08:20]} 26. f4 {[%clk 00:22:27]} {[%emt 00:03:10]} Kg7
{[%clk 00:13:41]} {[%emt 00:02:58]} 27. Rd3 {[%clk 00:21:37]} {[%emt 00:01:30]}
Nf6 {[%clk 00:13:45]} {[%emt 00:00:14]} 28. Rde3 {[%clk 00:17:27]} {[%emt
00:05:03]} Qg4 {[%clk 00:13:31]} {[%emt 00:00:40]} 29. Qf2 {[%clk 00:17:25]}
{[%emt 00:01:04]} Qc8 {[%clk 00:12:02]} {[%emt 00:01:07]} 30. h3 {[%clk
00:17:00]} {[%emt 00:01:17]} Qc5 {[%clk 00:11:08]} {[%emt 00:01:03]} 31. Qh4
{[%clk 00:16:11]} {[%emt 00:01:26]} b5 {[%clk 00:10:32]} {[%emt 00:00:59]} 32.
axb5 {[%clk 00:09:58]} {[%emt 00:06:43]} axb5 {[%clk 00:10:48]} {[%emt
00:00:24]} 33. e5 {[%clk 00:09:27]} {[%emt 00:00:49]} dxe5 {[%clk 00:10:14]}
{[%emt 00:01:07]} 34. fxe5 {[%clk 00:09:18]} {[%emt 00:00:37]} Rxe5 {[%clk
00:10:19]} {[%emt 00:00:37]} 35. Rxe5 {[%clk 00:08:19]} {[%emt 00:01:17]} Nxe5
{[%clk 00:10:43]} {[%emt 00:00:33]} 36. Qg5 {[%clk 00:06:39]} {[%emt 00:02:16]}
Nfd7 {[%clk 00:10:06]} {[%emt 00:00:36]} 37. Nd1 {[%clk 00:04:31]} {[%emt
00:02:36]} Qxc2 {[%clk 00:07:35]} {[%emt 00:03:34]} 38. Ne3 {[%clk 00:04:24]}
{[%emt 00:00:04]} Qe4 {[%clk 00:06:53]} {[%emt 00:01:11]} 39. Qe7+ {[%clk
00:04:22]} {[%emt 00:00:33]} Kg8 {[%clk 00:06:09]} {[%emt 00:01:16]} 40. Qe6+
{[%clk 00:03:56]} {[%emt 00:00:54]} Kg7 {[%clk 00:06:19]} {[%emt 00:00:51]} 41.
Qe7+ {[%clk 00:21:23]} {[%emt 00:12:51]} Kg8 {[%clk 00:36:34]} {[%emt
00:00:05]} 42. Qd8+ {[%clk 00:20:07]} {[%emt 00:02:17]} Kg7 {[%clk 00:34:23]}
{[%emt 00:02:40]} 43. Qg5 {[%clk 00:18:04]} {[%emt 00:02:16]} Nf7 {[%clk
00:29:52]} {[%emt 00:04:38]} 44. Qxb5 {[%clk 00:16:51]} {[%emt 00:01:43]} Bc6
{[%clk 00:25:55]} {[%emt 00:04:28]} 45. Qb3 {[%clk 00:16:16]} {[%emt 00:01:12]}
Nde5 {[%clk 00:24:45]} {[%emt 00:01:33]} 46. Rf1 {[%clk 00:13:26]} {[%emt
00:03:24]} Nd6 {[%clk 00:14:48]} {[%emt 00:10:23]} 47. Qa3 {[%clk 00:09:54]}
{[%emt 00:04:01]} Nec4 {[%clk 00:13:42]} {[%emt 00:01:36]} 48. Qa7+ {[%clk
00:07:53]} {[%emt 00:02:34]} Bb7 {[%clk 00:13:04]} {[%emt 00:01:19]} 49. Qb8
{[%clk 00:08:21]} {[%emt 00:00:05]} Nf5 {[%clk 00:13:14]} {[%emt 00:00:28]} 50.
Qc7+ {[%clk 00:07:01]} {[%emt 00:01:25]} Kh6 {[%clk 00:13:00]} {[%emt
00:01:10]} 51. Ng4+ {[%clk 00:02:30]} {[%emt 00:04:35]} Kg5 {[%clk 00:12:24]}
{[%emt 00:01:08]} 52. Qd8+ {[%clk 00:02:59]} {[%emt 00:00:18]} Ne7 {[%clk
00:12:11]} {[%emt 00:00:45]} 53. Rf2 {[%clk 00:03:28]} h5 {[%clk 00:08:09]}
{[%emt 00:04:12]} 54. Qh8 {[%clk 00:02:14]} {[%emt 00:01:44]} Ng8 {[%clk
00:06:45]} {[%emt 00:02:10]} 55. Qxg8 {[%clk 00:02:16]} {[%emt 00:00:11]} hxg4
{[%clk 00:07:02]} {[%emt 00:00:35]} 56. Qd8+ {[%clk 00:02:40]} {[%emt
00:00:17]} 1-0

[Event "Chess Festival Groningen 2023 | A"]
[Site "Groningen, Netherlands"]
[Date "2023.12.24"]
[Round "4.21"]
[White "Kanyamarala, Tarun"]
[Black "Krasenkowa, Elena"]
[Result "1-0"]
[TimeControl "90min/40moves + 30min + 30sec/move"]
[WhiteElo "2305"]
[BlackElo "2109"]

1. d4 {[%clk 01:30:54]} d5 {[%clk 01:30:57]} {[%emt 00:00:09]} 2. c4 {[%clk
01:30:27]} {[%emt 00:01:24]} c6 {[%clk 01:31:23]} 3. Nf3 {[%clk 01:29:31]}
{[%emt 00:00:55]} Nf6 {[%clk 01:31:48]} {[%emt 00:00:46]} 4. Nc3 {[%clk
01:28:36]} {[%emt 00:00:51]} e6 {[%clk 01:32:13]} 5. Qd3 {[%clk 01:24:36]}
{[%emt 00:04:31]} dxc4 {[%clk 01:30:29]} {[%emt 00:02:11]} 6. Qxc4 {[%clk
01:24:58]} {[%emt 00:00:43]} b5 {[%clk 01:30:42]} 7. Qd3 {[%clk 01:23:37]}
{[%emt 00:01:32]} Bb7 {[%clk 01:30:59]} {[%emt 00:00:47]} 8. e4 {[%clk
01:19:27]} {[%emt 00:04:10]} b4 {[%clk 01:24:38]} {[%emt 00:06:51]} 9. Na4
{[%clk 01:18:51]} {[%emt 00:01:12]} Ba6 {[%clk 01:23:55]} {[%emt 00:01:04]} 10.
Qc2 {[%clk 01:17:22]} {[%emt 00:02:02]} Bxf1 {[%clk 01:23:52]} {[%emt
00:00:35]} 11. Kxf1 {[%clk 01:14:39]} {[%emt 00:03:07]} Be7 {[%clk 01:23:45]}
{[%emt 00:00:38]} 12. g3 {[%clk 01:13:33]} {[%emt 00:01:35]} O-O {[%clk
01:22:26]} {[%emt 00:01:56]} 13. Kg2 {[%clk 01:13:38]} {[%emt 00:00:39]} a5
{[%clk 01:12:57]} {[%emt 00:09:38]} 14. Bf4 {[%clk 01:07:44]} {[%emt 00:06:25]}
Ra7 {[%clk 01:09:00]} {[%emt 00:04:46]} 15. Rac1 {[%clk 01:05:40]} {[%emt
00:02:50]} Nfd7 {[%clk 01:08:12]} {[%emt 00:00:41]} 16. h4 {[%clk 01:03:01]}
{[%emt 00:03:09]} Re8 {[%clk 01:07:29]} {[%emt 00:01:35]} 17. Rhd1 {[%clk
00:56:22]} {[%emt 00:06:47]} Bf8 {[%clk 00:56:37]} {[%emt 00:11:21]} 18. Qc4
{[%clk 00:50:34]} {[%emt 00:06:18]} h6 {[%clk 00:46:01]} {[%emt 00:11:07]} 19.
Rd2 {[%clk 00:48:36]} {[%emt 00:02:31]} Qe7 {[%clk 00:32:24]} {[%emt 00:14:03]}
20. Rdc2 {[%clk 00:46:55]} {[%emt 00:02:12]} f6 {[%clk 00:30:22]} {[%emt
00:02:32]} 21. h5 {[%clk 00:35:05]} {[%emt 00:12:19]} Qf7 {[%clk 00:30:37]}
{[%emt 00:00:39]} 22. Rh1 {[%clk 00:35:06]} {[%emt 00:00:05]} Rb7 {[%clk
00:24:38]} {[%emt 00:06:29]} 23. Qb3 {[%clk 00:33:48]} {[%emt 00:01:52]} Rb5
{[%clk 00:23:05]} {[%emt 00:01:58]} 24. g4 {[%clk 00:28:10]} {[%emt 00:06:09]}
g5 {[%clk 00:14:41]} {[%emt 00:09:22]} 25. Bxb8 {[%clk 00:19:13]} {[%emt
00:09:19]} Nxb8 {[%clk 00:15:07]} {[%emt 00:00:14]} 26. Re1 {[%clk 00:18:33]}
{[%emt 00:00:39]} Kg7 {[%clk 00:11:28]} {[%emt 00:04:09]} 27. Qd3 {[%clk
00:17:09]} {[%emt 00:01:54]} Rd8 {[%clk 00:08:33]} {[%emt 00:03:27]} 28. Qe2
{[%clk 00:13:20]} {[%emt 00:04:54]} Qd7 {[%clk 00:07:34]} {[%emt 00:00:52]} 29.
Rd1 {[%clk 00:09:19]} {[%emt 00:04:32]} e5 {[%clk 00:05:22]} {[%emt 00:02:41]}
30. Kh3 {[%clk 00:09:13]} {[%emt 00:00:36]} c5 {[%clk 00:02:48]} {[%emt
00:03:19]} 31. d5 {[%clk 00:09:00]} {[%emt 00:00:30]} b3 {[%clk 00:02:18]}
{[%emt 00:01:21]} 32. axb3 {[%clk 00:09:12]} {[%emt 00:00:08]} Rxb3 {[%clk
00:02:32]} {[%emt 00:00:09]} 33. Nc3 {[%clk 00:07:26]} {[%emt 00:02:11]} Bd6
{[%clk 00:02:31]} {[%emt 00:00:33]} 34. Nd2 {[%clk 00:07:13]} {[%emt 00:00:44]}
Rb4 {[%clk 00:02:37]} {[%emt 00:00:24]} 35. Nc4 {[%clk 00:07:25]} {[%emt
00:00:17]} a4 {[%clk 00:02:00]} {[%emt 00:01:19]} 36. Ra1 {[%clk 00:06:19]}
{[%emt 00:01:27]} Qb7 {[%clk 00:00:57]} {[%emt 00:01:31]} 37. Rxa4 {[%clk
00:05:06]} {[%emt 00:01:41]} Rxa4 {[%clk 00:01:15]} {[%emt 00:00:36]} 38. Nxa4
{[%clk 00:05:30]} {[%emt 00:00:08]} Qb3+ {[%clk 00:01:14]} {[%emt 00:00:09]} 39.
Nc3 {[%clk 00:05:53]} {[%emt 00:00:09]} Na6 {[%clk 00:01:17]} {[%emt 00:00:42]}
40. Ne3 {[%clk 00:04:00]} {[%emt 00:02:04]} Nb4 {[%clk 00:00:54]} {[%emt
00:00:50]} 41. Qb5 {[%clk 00:03:25]} {[%emt 00:01:05]} Bf8 {[%clk 00:17:39]}
{[%emt 00:13:45]} 42. Rd2 {[%clk 00:31:44]} {[%emt 00:02:10]} Kg8 {[%clk
00:17:10]} {[%emt 00:01:00]} 43. Nc4 {[%clk 00:26:10]} {[%emt 00:06:03]} Rb8
{[%clk 00:09:48]} {[%emt 00:07:55]} 44. Qxb8 {[%clk 00:25:23]} {[%emt
00:01:13]} Qxc4 {[%clk 00:10:16]} {[%emt 00:00:30]} 45. Qb5 {[%clk 00:25:36]}
{[%emt 00:00:11]} Qxb5 {[%clk 00:09:26]} {[%emt 00:01:00]} 46. Nxb5 {[%clk
00:25:54]} {[%emt 00:00:33]} c4 {[%clk 00:09:53]} {[%emt 00:00:13]} 47. d6
{[%clk 00:24:26]} {[%emt 00:02:04]} Nd3 {[%clk 00:08:04]} {[%emt 00:01:41]} 48.
d7 {[%clk 00:24:37]} {[%emt 00:00:39]} Be7 {[%clk 00:08:31]} {[%emt 00:00:10]}
49. Nd6 {[%clk 00:23:57]} {[%emt 00:01:35]} Nf4+ {[%clk 00:06:53]} {[%emt
00:01:16]} 50. Kh2 {[%clk 00:23:55]} {[%emt 00:00:31]} Ne6 {[%clk 00:07:21]}
{[%emt 00:00:22]} 51. Nxc4 {[%clk 00:21:59]} {[%emt 00:02:07]} Nd8 {[%clk
00:07:39]} {[%emt 00:00:41]} 52. Nd6 {[%clk 00:22:00]} {[%emt 00:00:04]} Kf8
{[%clk 00:08:02]} {[%emt 00:00:05]} 53. Nf5 {[%clk 00:22:07]} {[%emt 00:00:21]}
Bb4 {[%clk 00:07:27]} {[%emt 00:01:35]} 54. Rd5 {[%clk 00:22:30]} Kf7 {[%clk
00:07:46]} 55. Nxh6+ {[%clk 00:22:53]} Kf8 {[%clk 00:06:14]} {[%emt 00:02:29]}
56. Nf5 {[%clk 00:23:04]} {[%emt 00:00:09]} Kf7 {[%clk 00:06:25]} {[%emt
00:00:13]} 57. Rb5 {[%clk 00:22:59]} {[%emt 00:00:18]} Be7 {[%clk 00:06:02]}
{[%emt 00:01:14]} 58. h6 {[%clk 00:23:19]} {[%emt 00:00:09]} 1-0

[Event "Chess Festival Groningen 2023 | A"]
[Site "Groningen, Netherlands"]
[Date "2023.12.24"]
[Round "4.22"]
[White "Nicolai, Amir"]
[Black "Jaiveer, Mahendru"]
[Result "1-0"]
[TimeControl "90min/40moves + 30min + 30sec/move"]
[BlackFideId "25611151"]
[WhiteElo "2156"]
[BlackElo "2294"]

1. d4 {[%clk 01:30:55]} {[%emt 00:00:09]} Nf6 {[%clk 01:30:28]} {[%emt
00:00:26]} 2. c4 {[%clk 01:31:19]} {[%emt 00:00:07]} e6 {[%clk 01:30:54]}
{[%emt 00:00:05]} 3. g3 {[%clk 01:31:36]} {[%emt 00:00:09]} d5 {[%clk
01:30:19]} {[%emt 00:01:05]} 4. Bg2 {[%clk 01:31:52]} {[%emt 00:00:14]} Bb4+
{[%clk 01:29:50]} {[%emt 00:01:03]} 5. Nd2 {[%clk 01:31:31]} {[%emt 00:00:47]}
O-O {[%clk 01:30:11]} {[%emt 00:00:18]} 6. Ngf3 {[%clk 01:31:46]} {[%emt
00:00:07]} b6 {[%clk 01:19:16]} {[%emt 00:11:24]} 7. O-O {[%clk 01:29:01]}
{[%emt 00:03:14]} c6 {[%clk 01:18:56]} {[%emt 00:00:51]} 8. Qc2 {[%clk
01:28:37]} {[%emt 00:00:53]} a5 {[%clk 01:18:54]} {[%emt 00:00:35]} 9. e4
{[%clk 01:24:14]} {[%emt 00:04:51]} Ba6 {[%clk 01:18:33]} {[%emt 00:00:50]} 10.
e5 {[%clk 01:22:42]} {[%emt 00:02:05]} Ne8 {[%clk 01:15:56]} {[%emt 00:03:07]}
11. Rd1 {[%clk 01:19:46]} {[%emt 00:03:23]} Nd7 {[%clk 01:12:58]} {[%emt
00:03:27]} 12. b3 {[%clk 01:15:24]} {[%emt 00:04:53]} Rc8 {[%clk 01:11:55]}
{[%emt 00:01:34]} 13. Nf1 {[%clk 01:14:36]} {[%emt 00:01:17]} Be7 {[%clk
01:08:38]} {[%emt 00:03:51]} 14. Bf4 {[%clk 01:10:36]} {[%emt 00:04:26]} Nc7
{[%clk 01:07:28]} {[%emt 00:01:39]} 15. h4 {[%clk 01:09:37]} {[%emt 00:01:28]}
h6 {[%clk 00:59:52]} {[%emt 00:08:11]} 16. h5 {[%clk 01:08:17]} {[%emt
00:01:50]} Qe8 {[%clk 00:45:38]} {[%emt 00:14:46]} 17. Re1 {[%clk 00:58:54]}
{[%emt 00:09:46]} c5 {[%clk 00:43:40]} {[%emt 00:02:28]} 18. Ne3 {[%clk
00:54:11]} {[%emt 00:05:14]} cxd4 {[%clk 00:38:48]} {[%emt 00:05:20]} 19. Nxd4
{[%clk 00:53:55]} {[%emt 00:00:47]} Bc5 {[%clk 00:29:06]} {[%emt 00:10:11]} 20.
Qd1 {[%clk 00:48:34]} {[%emt 00:05:51]} dxc4 {[%clk 00:26:34]} {[%emt
00:03:05]} 21. bxc4 {[%clk 00:48:16]} {[%emt 00:00:46]} Kh8 {[%clk 00:18:06]}
{[%emt 00:08:57]} 22. a3 {[%clk 00:40:55]} {[%emt 00:07:50]} Nb8 {[%clk
00:16:21]} {[%emt 00:02:16]} 23. Qd2 {[%clk 00:31:55]} {[%emt 00:09:29]} Rd8
{[%clk 00:12:34]} {[%emt 00:04:21]} 24. Nec2 {[%clk 00:31:26]} {[%emt
00:00:55]} Bxc4 {[%clk 00:11:31]} {[%emt 00:01:37]} 25. Bxh6 {[%clk 00:26:15]}
{[%emt 00:05:39]} Bd5 {[%clk 00:10:32]} {[%emt 00:01:28]} 26. Be4 {[%clk
00:19:01]} {[%emt 00:07:44]} Rg8 {[%clk 00:10:06]} {[%emt 00:00:56]} 27. Bg5
{[%clk 00:17:54]} {[%emt 00:01:44]} Rd7 {[%clk 00:08:58]} {[%emt 00:01:41]} 28.
h6 {[%clk 00:13:25]} {[%emt 00:04:48]} g6 {[%clk 00:09:05]} {[%emt 00:00:28]}
29. h7 {[%clk 00:13:21]} {[%emt 00:00:30]} Rg7 {[%clk 00:08:03]} {[%emt
00:01:35]} 30. Bf6 {[%clk 00:13:00]} {[%emt 00:00:48]} Bf8 {[%clk 00:06:28]}
{[%emt 00:02:04]} 31. Bd3 {[%clk 00:07:37]} {[%emt 00:05:54]} Kxh7 {[%clk
00:05:59]} {[%emt 00:01:06]} 32. f3 {[%clk 00:06:52]} {[%emt 00:01:07]} Kg8
{[%clk 00:02:10]} {[%emt 00:04:19]} 33. Kg2 {[%clk 00:04:51]} {[%emt 00:02:35]}
g5 {[%clk 00:01:33]} {[%emt 00:01:04]} 34. Rh1 {[%clk 00:04:37]} {[%emt
00:00:46]} Nc6 {[%clk 00:00:42]} {[%emt 00:01:22]} 35. Qxg5 {[%clk 00:02:48]}
{[%emt 00:02:15]} Bxf3+ {[%clk 00:00:45]} {[%emt 00:00:26]} 36. Nxf3 {[%clk
00:02:33]} {[%emt 00:00:45]} Ne7 {[%clk 00:00:34]} {[%emt 00:00:46]} 37. Bh7+
{[%clk 00:01:50]} {[%emt 00:01:09]} Kh8 {[%clk 00:01:03]} 38. Qh6 {[%clk
00:01:47]} {[%emt 00:00:38]} 1-0

[Event "Chess Festival Groningen 2023 | A"]
[Site "Groningen, Netherlands"]
[Date "2023.12.24"]
[Round "4.23"]
[White "Van Helvoort, Rob"]
[Black "Besou, Hussain"]
[Result "1-0"]
[TimeControl "90min/40moves + 30min + 30sec/move"]
[WhiteElo "2098"]
[BlackElo "2280"]

1. e4 {[%clk 01:30:57]} {[%emt 00:00:44]} c5 {[%clk 01:30:51]} 2. Nf3 {[%clk
01:31:14]} d6 {[%clk 01:31:15]} 3. Bb5+ {[%clk 01:31:16]} {[%emt 00:00:19]} Nd7
{[%clk 01:31:37]} {[%emt 00:00:26]} 4. c3 {[%clk 01:31:18]} {[%emt 00:00:10]}
Ngf6 {[%clk 01:31:52]} {[%emt 00:00:14]} 5. Qe2 {[%clk 01:31:37]} {[%emt
00:00:42]} a6 {[%clk 01:30:34]} {[%emt 00:01:15]} 6. Ba4 {[%clk 01:32:01]}
{[%emt 00:00:10]} b5 {[%clk 01:30:26]} {[%emt 00:00:34]} 7. Bc2 {[%clk
01:32:22]} {[%emt 00:00:13]} Bb7 {[%clk 01:30:24]} {[%emt 00:00:28]} 8. d4
{[%clk 01:31:45]} {[%emt 00:01:07]} e5 {[%clk 01:30:32]} {[%emt 00:00:31]} 9.
d5 {[%clk 01:31:32]} {[%emt 00:00:53]} g6 {[%clk 01:30:37]} {[%emt 00:00:19]}
10. O-O {[%clk 01:30:46]} {[%emt 00:01:02]} Bg7 {[%clk 01:30:55]} {[%emt
00:00:23]} 11. b3 {[%clk 01:19:55]} {[%emt 00:11:11]} O-O {[%clk 01:29:24]}
{[%emt 00:02:36]} 12. a4 {[%clk 01:19:01]} {[%emt 00:00:48]} b4 {[%clk
01:17:54]} {[%emt 00:12:06]} 13. a5 {[%clk 01:16:34]} {[%emt 00:02:53]} bxc3
{[%clk 01:17:16]} {[%emt 00:01:06]} 14. Nxc3 {[%clk 01:15:59]} {[%emt
00:01:05]} Ne8 {[%clk 01:03:05]} {[%emt 00:15:02]} 15. Bd3 {[%clk 01:10:36]}
{[%emt 00:06:16]} h6 {[%clk 00:57:57]} {[%emt 00:05:01]} 16. g3 {[%clk
01:01:56]} {[%emt 00:09:07]} Nc7 {[%clk 00:52:51]} {[%emt 00:05:31]} 17. Bd2
{[%clk 00:58:17]} {[%emt 00:04:12]} Bc8 {[%clk 00:48:32]} {[%emt 00:04:48]} 18.
Nh4 {[%clk 00:53:58]} {[%emt 00:04:50]} Nf6 {[%clk 00:45:27]} {[%emt 00:03:34]}
19. Na4 {[%clk 00:42:08]} {[%emt 00:12:20]} Nb5 {[%clk 00:42:07]} {[%emt
00:04:02]} 20. Bxb5 {[%clk 00:41:36]} {[%emt 00:00:52]} axb5 {[%clk 00:42:30]}
{[%emt 00:00:05]} 21. Nb6 {[%clk 00:38:30]} {[%emt 00:03:35]} Ra7 {[%clk
00:42:36]} {[%emt 00:00:23]} 22. Nxc8 {[%clk 00:37:59]} {[%emt 00:01:09]} Qxc8
{[%clk 00:43:01]} 23. f3 {[%clk 00:35:25]} {[%emt 00:03:05]} Qa6 {[%clk
00:39:24]} {[%emt 00:04:13]} 24. b4 {[%clk 00:31:24]} {[%emt 00:04:21]} Rc7
{[%clk 00:34:59]} {[%emt 00:05:47]} 25. Rfc1 {[%clk 00:22:29]} {[%emt
00:08:33]} Rfc8 {[%clk 00:34:57]} {[%emt 00:00:48]} 26. Qe3 {[%clk 00:18:22]}
{[%emt 00:04:49]} Nd7 {[%clk 00:33:49]} {[%emt 00:01:11]} 27. Rab1 {[%clk
00:12:52]} {[%emt 00:06:02]} cxb4 {[%clk 00:28:01]} {[%emt 00:06:35]} 28. Rxc7
{[%clk 00:11:31]} {[%emt 00:01:30]} Rxc7 {[%clk 00:28:25]} {[%emt 00:00:08]} 29.
Bxb4 {[%clk 00:10:39]} {[%emt 00:01:52]} Rc4 {[%clk 00:28:37]} {[%emt
00:00:10]} 30. Ng2 {[%clk 00:09:31]} {[%emt 00:01:14]} Nc5 {[%clk 00:12:53]}
{[%emt 00:16:13]} 31. Ne1 {[%clk 00:07:57]} {[%emt 00:02:06]} Na4 {[%clk
00:08:05]} {[%emt 00:05:27]} 32. Kg2 {[%clk 00:07:56]} {[%emt 00:00:21]} f5
{[%clk 00:07:23]} {[%emt 00:01:29]} 33. Nd3 {[%clk 00:07:10]} {[%emt 00:00:59]}
Rc2+ {[%clk 00:06:25]} {[%emt 00:01:49]} 34. Nf2 {[%clk 00:06:21]} {[%emt
00:00:57]} f4 {[%clk 00:05:38]} {[%emt 00:01:18]} 35. Qd3 {[%clk 00:06:19]}
{[%emt 00:00:31]} Rc4 {[%clk 00:04:59]} {[%emt 00:01:11]} 36. Qb3 {[%clk
00:05:45]} {[%emt 00:01:02]} Rc8 {[%clk 00:03:15]} {[%emt 00:02:13]} 37. Bd2
{[%clk 00:05:33]} {[%emt 00:00:42]} fxg3 {[%clk 00:03:29]} {[%emt 00:00:21]} 38.
hxg3 {[%clk 00:05:56]} {[%emt 00:00:09]} Rb8 {[%clk 00:03:53]} {[%emt
00:00:05]} 39. Rc1 {[%clk 00:02:19]} {[%emt 00:04:05]} Nc5 {[%clk 00:04:16]}
{[%emt 00:00:07]} 40. Qb4 {[%clk 00:02:22]} {[%emt 00:00:26]} Qb7 {[%clk
00:03:30]} {[%emt 00:01:13]} 41. Be3 {[%clk 00:00:58]} {[%emt 00:01:55]} Bf8
{[%clk 00:30:19]} {[%emt 00:04:03]} 42. Rh1 {[%clk 00:22:49]} {[%emt 00:08:16]}
h5 {[%clk 00:28:47]} {[%emt 00:02:07]} 43. g4 {[%clk 00:21:27]} {[%emt
00:01:47]} Qf7 {[%clk 00:28:58]} {[%emt 00:00:18]} 44. Qd2 {[%clk 00:20:02]}
{[%emt 00:01:56]} Be7 {[%clk 00:26:06]} {[%emt 00:03:29]} 45. Bg5 {[%clk
00:17:01]} {[%emt 00:03:59]} Rf8 {[%clk 00:20:58]} {[%emt 00:05:04]} 46. Rh3
{[%clk 00:17:24]} {[%emt 00:00:24]} Nb3 {[%clk 00:21:09]} {[%emt 00:00:05]} 47.
Qe3 {[%clk 00:17:19]} {[%emt 00:00:30]} Nd4 {[%clk 00:21:30]} {[%emt 00:00:37]}
48. Bxe7 {[%clk 00:13:46]} {[%emt 00:04:12]} Qxe7 {[%clk 00:21:40]} {[%emt
00:00:09]} 49. gxh5 {[%clk 00:13:52]} {[%emt 00:00:25]} gxh5 {[%clk 00:22:04]}
50. Qh6 {[%clk 00:12:39]} {[%emt 00:01:45]} Ne2 {[%clk 00:21:42]} {[%emt
00:00:30]} 51. Kf1 {[%clk 00:10:22]} {[%emt 00:02:47]} Qg7 {[%clk 00:17:43]}
{[%emt 00:04:48]} 52. Qxg7+ {[%clk 00:10:35]} {[%emt 00:00:08]} Kxg7 {[%clk
00:18:07]} 53. Kxe2 {[%clk 00:11:00]} {[%emt 00:00:13]} Ra8 {[%clk 00:18:33]}
54. Rxh5 {[%clk 00:11:08]} {[%emt 00:00:14]} b4 {[%clk 00:18:13]} {[%emt
00:01:06]} 55. Rh1 {[%clk 00:10:19]} {[%emt 00:01:03]} Rxa5 {[%clk 00:18:39]}
{[%emt 00:00:28]} 56. Rb1 {[%clk 00:10:29]} {[%emt 00:00:11]} Ra2+ {[%clk
00:18:57]} {[%emt 00:00:04]} 57. Ke3 {[%clk 00:10:53]} {[%emt 00:00:05]} 1-0